lending/lending_fUSD_20250808
["ID","MTS","AMOUNT","RATE_DAILY","PERIOD"]
[377917413,1754613149144,-1165.14,0.00021917,2]
[377917414,1754613149154,-1164.62,0.00021917,2]
[377917415,1754613149163,-2405.69,0.00021917,2]
[377917416,1754613149173,-620.84,0.00021917,2]
[377917417,1754613149183,-918.26,0.00021917,2]
[377917418,1754613149193,-1258.15,0.00021917,2]
[377917419,1754613149203,-2947.95,0.00021917,2]
[377917420,1754613149213,-876.19,0.00021917,2]
[377917421,1754613149223,-1553.23,0.00021917,2]
[377917422,1754613149232,-478.79,0.00021917,2]
[377917423,1754613149243,-599.75,0.00021917,2]
[377917424,1754613149253,-1217.16,0.00021917,2]
[377917425,1754613149265,-2199.42,0.00021917,2]
[377917426,1754613149275,-21934.36,0.00021917,2]
[377917427,1754613149285,-2212.98,0.00021917,2]
[377917428,1754613149295,-1718.94,0.00021917,2]
[377917429,1754613149307,-1128.21,0.00021917,2]
[377917430,1754613149318,-2805.22,0.00021917,2]
[377917431,1754613149329,-400.0,0.00021917,2]
[377917432,1754613149339,-454.14,0.00021917,2]
[377917433,1754613149350,-913.11,0.00021917,2]
[377917434,1754613149360,-400.0,0.00021917,2]
[377917435,1754613149370,-484.16,0.00021917,2]
[377917436,1754613149379,-1717.22,0.00021917,2]
[377917437,1754613149390,-2525.21,0.00021917,2]
[377917438,1754613149400,-674.02,0.00021917,2]
[377917439,1754613149409,-400.0,0.00021917,2]
[377917440,1754613149418,-3589.91,0.00021917,2]
[377917441,1754613149428,-445.14,0.00021917,2]
[377917442,1754613149437,-1638.11,0.00021917,2]
[377917443,1754613149447,-1662.56,0.00021917,2]
[377917444,1754613149457,-820.59,0.00021917,2]
[377917445,1754613149467,-400.0,0.00021917,2]
[377917446,1754613149477,-1890.31,0.00021917,2]
[377917447,1754613149487,-1814.44,0.00021917,2]
[377917448,1754613149497,-674.63,0.00021917,2]
[377917449,1754613149506,-600.51,0.00021917,2]
[377917450,1754613149516,-400.0,0.00021917,2]
[377917451,1754613149525,-400.0,0.00021917,2]
[377917452,1754613149535,-1179.5,0.00021917,2]
[377917453,1754613149544,-2338.84,0.00021917,2]
[377917454,1754613149554,-309.67606633,0.00021917,2]
[377917455,1754613149563,-2335.94,0.00021917,2]
[377917456,1754613149573,-1234.92,0.00021917,2]
[377917457,1754613149583,-5688.95,0.00021917,2]
[377917458,1754613149593,-400.0,0.00021917,2]
[377917459,1754613149603,-862.72,0.00021917,2]
[377917460,1754613149612,-1880.9,0.00021917,2]
[377917461,1754613149623,-1651.16,0.00021917,2]
[377917462,1754613149632,-400.0,0.00021917,2]
[377917463,1754613149644,-707.51,0.00021917,2]
[377917464,1754613149654,-2569.88,0.00021917,2]
[377917465,1754613149663,-480.51,0.00021917,2]
[377917466,1754613149673,-1525.3,0.00021917,2]
[377917467,1754613149682,-492.44,0.00021917,2]
[377917468,1754613149692,-156.33329,0.00021918,2]
[377917469,1754613149701,-5000.0,0.00021918,2]
[377917470,1754613149711,-158.81680842,0.00021918,2]
[377917471,1754613149721,-150.0,0.00021918,2]
[377917472,1754613149731,-150.0,0.00021918,2]
[377917473,1754613149740,-156.63789196,0.00021918,2]
[377917474,1754613149749,-200.0,0.00021918,2]
[377917475,1754613149760,-519.73251965,0.00021918,2]
[377917476,1754613149769,-154.30454431,0.00021918,2]
[377917477,1754613149779,-152.06640612,0.00021918,2]
[377917478,1754613149789,-301.62354975,0.00021968,2]
[377917479,1754613149798,-15626.57825185,0.0002199,2]
[377917480,1754613149808,-6935.97351112,0.00022,14]
[377917481,1754613149817,-231026.01840902,0.00022,4]
[377917482,1754613149827,-500.0,0.00022,2]
[377917483,1754613149836,-776.90404344,0.00022,7]
[377917484,1754613149846,-126909.2761709,0.00022,4]
[377917485,1754613149855,-1330.16488278,0.00022,30]
[377917486,1754613149865,-4000.0,0.00022,4]
[377917487,1754613149878,-637.67,0.00022,2]
[377917488,1754613149890,-150.0,0.00022055,5]
[377917489,1754613149900,-258.91684762,0.00022055,5]
[377917490,1754613149910,-275.15,0.00022149,2]
[377917491,1754613149920,-400.0,0.00022173,2]
[377917492,1754613149930,-1770.72,0.00022178,2]
[377917493,1754613149940,-2033.74,0.00022178,2]
[377917494,1754613149953,-400.0,0.00022178,2]
[377917495,1754613149963,-1928.95,0.00022178,2]
[377917496,1754613149974,-1964.46,0.00022178,2]
[377917497,1754613149983,-1517.59,0.00022178,2]
[377917498,1754613149993,-2517.35,0.00022178,2]
[377917499,1754613150003,-3417.84,0.00022178,2]
[377917500,1754613150013,-183.8220044,0.00022191,2]
[377917501,1754613150023,-183.8220044,0.00022191,2]
[377917502,1754613150032,-400.0,0.00022191,2]
[377917503,1754613150042,-400.0,0.00022191,2]
[377917504,1754613150052,-413.9,0.00022191,2]
[377917505,1754613150061,-491.72,0.00022191,2]
[377917506,1754613150071,-400.0,0.00022191,2]
[377917507,1754613150081,-1398.87,0.00022191,2]
[377917508,1754613150091,-1031.25,0.00022191,2]
[377917509,1754613150102,-400.0,0.00022191,2]
[377917510,1754613150111,-400.0,0.00022191,2]
[377917511,1754613150123,-984.93,0.00022191,2]
[377917512,1754613150132,-565.33,0.00022191,2]
[377917513,1754613150144,-1073.05,0.00022191,2]
[377917514,1754613150154,-1178.77,0.00022191,2]
[377917515,1754613150164,-312.70005999,0.00022191,2]
[377917516,1754613150173,-828.34,0.00022191,2]
[377917517,1754613150183,-400.0,0.00022191,2]
[377917518,1754613150192,-400.0,0.00022191,2]
[377917519,1754613150201,-400.0,0.00022191,2]
[377917520,1754613150211,-400.0,0.00022191,2]
[377917521,1754613150220,-812.28,0.00022191,2]
[377917522,1754613150230,-927.28,0.00022191,2]
[377917523,1754613150239,-400.0,0.00022191,2]
[377917524,1754613150250,-400.0,0.00022191,2]
[377917525,1754613150260,-953.96,0.00022191,2]
[377917526,1754613150270,-400.0,0.00022191,2]
[377917527,1754613150279,-364.65972886,0.00022191,2]
[377917528,1754613150289,-861.71,0.00022191,2]
[377917529,1754613150299,-802.6,0.00022191,2]
[377917530,1754613150308,-400.0,0.00022191,2]
[377917531,1754613150318,-580.75,0.00022191,2]
[377917532,1754613150327,-400.0,0.00022191,2]
[377917533,1754613150336,-400.0,0.00022191,2]
[377917534,1754613150346,-571.8,0.00022191,2]
[377917535,1754613150355,-1017.49,0.00022191,2]
[377917536,1754613150365,-480.71,0.00022191,2]
[377917537,1754613150374,-400.0,0.00022191,2]
[377917538,1754613150387,-403.89,0.00022191,2]
[377917539,1754613150396,-400.0,0.00022191,2]
[377917540,1754613150406,-400.0,0.00022191,2]
[377917541,1754613150416,-400.0,0.00022191,2]
[377917542,1754613150425,-1379.73,0.00022191,2]
[377917543,1754613150436,-1290.36,0.00022191,2]
[377917544,1754613150446,-400.0,0.00022191,2]
[377917545,1754613150456,-400.0,0.00022191,2]
[377917546,1754613150478,-560.12,0.00022191,2]
[377917547,1754613150489,-1326.45,0.00022191,2]
[377917548,1754613150499,-1037.58,0.00022191,2]
[377917549,1754613150511,-400.0,0.00022191,2]
[377917550,1754613150521,-570.53,0.00022191,2]
[377917551,1754613150531,-551.88,0.00022191,2]
[377917552,1754613150541,-624.79,0.00022191,2]
[377917553,1754613150551,-459.48,0.00022191,2]
[377917554,1754613150561,-912.6,0.00022191,2]
[377917555,1754613150571,-453.86,0.00022191,2]
[377917556,1754613150580,-845.43,0.00022191,2]
[377917557,1754613150590,-610.33,0.00022191,2]
[377917558,1754613150600,-1543.29,0.00022191,2]
[377917559,1754613150610,-802.15,0.00022191,2]
[377917560,1754613150621,-405.06,0.00022191,2]
[377917561,1754613150630,-400.0,0.00022191,2]
[377917562,1754613150642,-400.0,0.00022191,2]
[377917563,1754613150652,-1052.0,0.00022191,2]
[377917564,1754613150661,-400.0,0.00022191,2]
[377917565,1754613150671,-903.46,0.00022191,2]
[377917566,1754613150680,-950.22,0.00022191,2]
[377917567,1754613150689,-1188.56,0.00022191,2]
[377917568,1754613150699,-400.0,0.00022191,2]
[377917569,1754613150708,-1340.86,0.00022191,2]
[377917570,1754613150718,-511.85,0.00022191,2]
[377917571,1754613150727,-502.43,0.00022191,2]
[377917572,1754613150737,-469.08,0.00022191,2]
[377917573,1754613150747,-431.81,0.00022191,2]
[377917574,1754613150757,-538.68,0.00022191,2]
[377917575,1754613150767,-415.03,0.00022191,2]
[377917576,1754613150777,-400.0,0.00022191,2]
[377917577,1754613150788,-400.0,0.00022191,2]
[377917578,1754613150797,-400.0,0.00022191,2]
[377917579,1754613150807,-652.84,0.00022191,2]
[377917580,1754613150817,-448.34,0.00022191,2]
[377917581,1754613150827,-613.1,0.00022191,2]
[377917582,1754613150837,-400.0,0.00022191,2]
[377917583,1754613150848,-400.0,0.00022191,2]
[377917584,1754613150858,-1054.59,0.00022191,2]
[377917585,1754613150869,-606.31,0.00022191,2]
[377917586,1754613150880,-468.72,0.00022191,2]
[377917587,1754613150893,-400.0,0.00022191,2]
[377917588,1754613150904,-560.03,0.00022191,2]
[377917589,1754613150913,-400.0,0.00022191,2]
[377917590,1754613150923,-1129.63,0.00022191,2]
[377917591,1754613150932,-744.37,0.00022191,2]
[377917592,1754613150943,-771.07,0.00022191,2]
[377917593,1754613150954,-1372.41,0.00022191,2]
[377917594,1754613150965,-830.78,0.00022191,2]
[377917595,1754613150975,-400.0,0.00022191,2]
[377917596,1754613150985,-1290.29,0.00022191,2]
[377917597,1754613150994,-463.32,0.00022191,2]
[377917598,1754613151005,-400.0,0.00022191,2]
[377917599,1754613151015,-643.55,0.00022191,2]
[377917600,1754613151025,-400.0,0.00022191,2]
[377917601,1754613151035,-400.0,0.00022191,2]
[377917602,1754613151045,-400.0,0.00022191,2]
[377917603,1754613151056,-400.0,0.00022191,2]
[377917604,1754613151065,-792.51,0.00022191,2]
[377917605,1754613151075,-720.13,0.00022191,2]
[377917606,1754613151085,-526.14,0.00022191,2]
[377917607,1754613151095,-690.34,0.00022191,2]
[377917608,1754613151106,-767.24,0.00022191,2]
[377917609,1754613151116,-784.03,0.00022191,2]
[377917610,1754613151126,-592.46,0.00022191,2]
[377917611,1754613151138,-838.34,0.00022191,2]
[377917612,1754613151149,-619.45,0.00022191,2]
[377917613,1754613151159,-400.0,0.00022191,2]
[377917614,1754613151169,-400.0,0.00022191,2]
[377917615,1754613151179,-400.0,0.00022191,2]
[377917616,1754613151189,-430.58,0.00022191,2]
[377917617,1754613151199,-400.0,0.00022191,2]
[377917618,1754613151210,-400.0,0.00022191,2]
[377917619,1754613151219,-400.0,0.00022191,2]
[377917620,1754613151228,-400.0,0.00022191,2]
[377917621,1754613151238,-887.56,0.00022191,2]
[377917622,1754613151248,-1086.27,0.00022191,2]
[377917623,1754613151258,-400.0,0.00022191,2]
[377917624,1754613151268,-1398.35,0.00022191,2]
[377917625,1754613151511,-1137.31,0.00022191,2]
[377917626,1754613151522,-400.0,0.00022191,2]
[377917627,1754613151531,-488.07,0.00022191,2]
[377917628,1754613151541,-433.15,0.00022191,2]
[377917629,1754613151550,-644.96,0.00022191,2]
[377917630,1754613151560,-969.77,0.00022191,2]
[377917631,1754613151570,-711.54,0.00022191,2]
[377917632,1754613151579,-615.2,0.00022191,2]
[377917633,1754613151588,-1326.15,0.00022191,2]
[377917634,1754613151598,-580.71,0.00022191,2]
[377917635,1754613151608,-745.61,0.00022191,2]
[377917636,1754613151619,-777.93,0.00022191,2]
[377917637,1754613151629,-533.67,0.00022191,2]
[377917638,1754613151641,-400.0,0.00022191,2]
[377917639,1754613151651,-400.0,0.00022191,2]
[377917640,1754613151661,-1764.53,0.00022191,2]
[377917641,1754613151671,-1146.04,0.00022191,2]
[377917642,1754613151681,-678.35,0.00022191,2]
[377917643,1754613151691,-400.0,0.00022191,2]
[377917644,1754613151701,-595.92,0.00022191,2]
[377917645,1754613151710,-400.0,0.00022191,2]
[377917646,1754613151720,-1128.98,0.00022191,2]
[377917647,1754613151730,-1058.02,0.00022191,2]
[377917648,1754613151740,-460.25,0.00022191,2]
[377917649,1754613151750,-467.91,0.00022191,2]
[377917650,1754613151760,-498.62,0.00022191,2]
[377917651,1754613151770,-684.85,0.00022191,2]
[377917652,1754613151779,-400.0,0.00022191,2]
[377917653,1754613151789,-519.11,0.00022191,2]
[377917654,1754613151799,-1822.08,0.00022191,2]
[377917655,1754613151810,-834.5,0.00022191,2]
[377917656,1754613151819,-400.0,0.00022191,2]
[377917657,1754613151829,-400.0,0.00022191,2]
[377917658,1754613151839,-431.49,0.00022191,2]
[377917659,1754613151849,-400.0,0.00022191,2]
[377917660,1754613151860,-400.0,0.00022191,2]
[377917661,1754613151871,-756.51,0.00022191,2]
[377917662,1754613151882,-474.3,0.00022191,2]
[377917663,1754613151895,-753.02,0.00022191,2]
[377917664,1754613151905,-173.43566545,0.00022191,2]
[377917665,1754613151915,-400.0,0.00022191,2]
[377917666,1754613151925,-400.0,0.00022191,2]
[377917667,1754613151936,-530.37,0.00022191,2]
[377917668,1754613151947,-1312.14,0.00022191,2]
[377917669,1754613151958,-400.0,0.00022191,2]
[377917670,1754613151968,-664.1,0.00022191,2]
[377917671,1754613151978,-723.03,0.00022191,2]
[377917672,1754613151988,-488.75,0.00022191,2]
[377917673,1754613151998,-753.14,0.00022191,2]
[377917674,1754613152007,-400.0,0.00022191,2]
[377917675,1754613152018,-481.93,0.00022191,2]
[377917676,1754613152027,-681.29,0.00022191,2]
[377917677,1754613152037,-1362.2,0.00022191,2]
[377917678,1754613152047,-1202.92,0.00022191,2]
[377917679,1754613152057,-400.0,0.00022191,2]
[377917680,1754613152067,-908.09,0.00022191,2]
[377917681,1754613152077,-400.0,0.00022191,2]
[377917682,1754613152086,-1356.82,0.00022191,2]
[377917683,1754613152097,-642.93,0.00022191,2]
[377917684,1754613152107,-558.14,0.00022191,2]
[377917685,1754613152117,-473.3,0.00022191,2]
[377917686,1754613152127,-857.38,0.00022191,2]
[377917687,1754613152142,-600.87,0.00022191,2]
[377917688,1754613152151,-1113.28,0.00022191,2]
[377917689,1754613152162,-1063.89,0.00022191,2]
[377917690,1754613152172,-766.74,0.00022191,2]
[377917691,1754613152181,-400.0,0.00022191,2]
[377917692,1754613152192,-702.23,0.00022191,2]
[377917693,1754613152201,-400.0,0.00022191,2]
[377917694,1754613152212,-697.81,0.00022191,2]
[377917695,1754613152223,-593.88,0.00022191,2]
[377917696,1754613152234,-835.59,0.00022191,2]
[377917697,1754613152244,-787.56,0.00022191,2]
[377917698,1754613152255,-1070.57,0.00022191,2]
[377917699,1754613152264,-714.37,0.00022191,2]
[377917700,1754613152275,-565.06,0.00022191,2]
[377917701,1754613152285,-805.74,0.00022191,2]
[377917702,1754613152296,-1013.85,0.00022191,2]
[377917703,1754613152306,-400.0,0.00022191,2]
[377917704,1754613152316,-400.0,0.00022191,2]
[377917705,1754613152326,-400.0,0.00022191,2]
[377917706,1754613152335,-446.94,0.00022191,2]
[377917707,1754613152345,-518.84,0.00022191,2]
[377917708,1754613152355,-634.1,0.00022191,2]
[377917709,1754613152366,-668.96,0.00022191,2]
[377917710,1754613152377,-997.03,0.00022191,2]
[377917711,1754613152387,-1310.15,0.00022191,2]
[377917712,1754613152397,-539.85,0.00022191,2]
[377917713,1754613152406,-823.13,0.00022191,2]
[377917714,1754613152416,-602.12,0.00022191,2]
[377917715,1754613152426,-1520.38,0.00022191,2]
[377917716,1754613152435,-542.82,0.00022191,2]
[377917717,1754613152445,-677.81,0.00022191,2]
[377917718,1754613152455,-400.0,0.00022191,2]
[377917719,1754613152465,-1166.4,0.00022191,2]
[377917720,1754613152475,-400.0,0.00022191,2]
[377917721,1754613152485,-440.74,0.00022191,2]
[377917722,1754613152495,-400.0,0.00022191,2]
[377917723,1754613152505,-400.0,0.00022191,2]
[377917724,1754613152514,-1322.15,0.00022191,2]
[377917725,1754613152523,-400.0,0.00022191,2]
[377917726,1754613152533,-400.0,0.00022191,2]
[377917727,1754613152543,-400.0,0.00022191,2]
[377917728,1754613152553,-439.53,0.00022191,2]
[377917729,1754613152563,-400.0,0.00022191,2]
[377917730,1754613152573,-729.31,0.00022191,2]
[377917731,1754613152583,-455.12,0.00022191,2]
[377917732,1754613152593,-400.0,0.00022191,2]
[377917733,1754613152603,-1225.17,0.00022191,2]
[377917734,1754613152612,-1460.14,0.00022191,2]
[377917735,1754613152622,-400.0,0.00022191,2]
[377917736,1754613152632,-535.87,0.00022191,2]
[377917737,1754613152643,-400.0,0.00022191,2]
[377917738,1754613152654,-965.56,0.00022191,2]
[377917739,1754613152664,-400.0,0.00022191,2]
[377917740,1754613152673,-400.0,0.00022191,2]
[377917741,1754613152683,-473.14,0.00022191,2]
[377917742,1754613152693,-1112.82,0.00022191,2]
[377917743,1754613152703,-400.0,0.00022191,2]
[377917744,1754613152713,-1239.98,0.00022191,2]
[377917745,1754613152724,-592.4,0.00022191,2]
[377917746,1754613152734,-400.0,0.00022191,2]
[377917747,1754613152744,-313.07417338,0.00022191,2]
[377917748,1754613152753,-1121.49,0.00022191,2]
[377917749,1754613152763,-412.93,0.00022191,2]
[377917750,1754613152774,-546.56,0.00022191,2]
[377917751,1754613152783,-400.0,0.00022191,2]
[377917752,1754613152793,-1332.23,0.00022191,2]
[377917753,1754613152803,-2373.45,0.00022191,2]
[377917754,1754613152814,-1921.83,0.00022191,2]
[377917755,1754613152824,-867.66,0.00022191,2]
[377917756,1754613152834,-400.0,0.00022191,2]
[377917757,1754613152843,-477.33,0.00022191,2]
[377917758,1754613152853,-586.09,0.00022191,2]
[377917759,1754613152863,-633.66,0.00022191,2]
[377917760,1754613152876,-400.0,0.00022191,2]
[377917761,1754613152886,-434.62,0.00022191,2]
[377917762,1754613152898,-400.0,0.00022191,2]
[377917763,1754613152907,-1031.22,0.00022191,2]
[377917764,1754613152918,-400.0,0.00022191,2]
[377917765,1754613152928,-591.29,0.00022191,2]
[377917766,1754613152938,-1239.8,0.00022191,2]
[377917767,1754613152951,-419.72,0.00022191,2]
[377917768,1754613152961,-433.91,0.00022191,2]
[377917769,1754613152971,-765.3,0.00022191,2]
[377917770,1754613152981,-1091.91,0.00022191,2]
[377917771,1754613152991,-718.67,0.00022191,2]
[377917772,1754613153001,-400.0,0.00022191,2]
[377917773,1754613153010,-942.73,0.00022191,2]
[377917774,1754613153020,-400.0,0.00022191,2]
[377917775,1754613153030,-655.59,0.00022191,2]
[377917776,1754613153041,-549.44,0.00022191,2]
[377917777,1754613153051,-706.48,0.00022191,2]
[377917778,1754613153062,-798.23,0.00022191,2]
[377917779,1754613153072,-1153.34,0.00022191,2]
[377917780,1754613153081,-1177.75,0.00022191,2]
[377917781,1754613153092,-549.94,0.00022191,2]
[377917782,1754613153102,-560.12,0.00022191,2]
[377917783,1754613153112,-819.45,0.00022191,2]
[377917784,1754613153123,-895.98,0.00022191,2]
[377917785,1754613153133,-804.91,0.00022191,2]
[377917786,1754613153146,-472.38,0.00022191,2]
[377917787,1754613153155,-400.0,0.00022191,2]
[377917788,1754613153169,-638.56,0.00022191,2]
[377917789,1754613153179,-1000.0,0.00022191,2]
[377917790,1754613153189,-1258.89,0.00022191,2]
[377917791,1754613153199,-593.81,0.00022191,2]
[377917792,1754613153209,-352.152162,0.00022191,2]
[377917793,1754613153219,-400.0,0.00022191,2]
[377917794,1754613153229,-352.152162,0.00022191,2]
[377917795,1754613153239,-622.14,0.00022191,2]
[377917796,1754613153249,-1287.29,0.00022191,2]
[377917797,1754613153259,-1105.48,0.00022191,2]
[377917798,1754613153269,-420.834801,0.00022191,2]
[377917799,1754613153280,-420.834801,0.00022191,2]
[377917800,1754613153290,-1707.57,0.00022191,2]
[377917801,1754613153300,-1063.27,0.00022191,2]
[377917802,1754613153310,-1515.17,0.00022191,2]
[377917803,1754613153320,-1621.03,0.00022191,2]
[377917804,1754613153330,-400.0,0.00022191,2]
[377917805,1754613153341,-464.55925446,0.00022191,2]
[377917806,1754613153351,-577.01,0.00022191,2]
[377917807,1754613153362,-400.0,0.00022191,2]
[377917808,1754613153372,-877.01,0.00022191,2]
[377917809,1754613153382,-400.0,0.00022191,2]
[377917810,1754613153393,-400.0,0.00022191,2]
[377917811,1754613153403,-400.0,0.00022191,2]
[377917812,1754613153414,-1622.23,0.00022191,2]
[377917813,1754613153424,-400.0,0.00022191,2]
[377917814,1754613153434,-1480.91,0.00022191,2]
[377917815,1754613153444,-400.0,0.00022191,2]
[377917816,1754613153454,-981.54,0.00022191,2]
[377917817,1754613153464,-400.0,0.00022191,2]
[377917818,1754613153474,-400.0,0.00022191,2]
[377917819,1754613153484,-1040.41,0.00022191,2]
[377917820,1754613153494,-1390.26,0.00022191,2]
[377917821,1754613153504,-400.0,0.00022191,2]
[377917822,1754613153514,-1312.79,0.00022191,2]
[377917823,1754613153524,-447.12,0.00022191,2]
[377917824,1754613153535,-246.791616,0.00022191,2]
[377917825,1754613153544,-246.791616,0.00022191,2]
[377917826,1754613153554,-1460.09,0.00022191,2]
[377917827,1754613153564,-446.5,0.00022191,2]
[377917828,1754613153574,-806.42,0.00022191,2]
[377917829,1754613153584,-783.24,0.00022191,2]
[377917830,1754613153593,-680.12,0.00022191,2]
[377917831,1754613153603,-400.0,0.00022191,2]
[377917832,1754613153614,-998.91,0.00022191,2]
[377917833,1754613153625,-633.1,0.00022191,2]
[377917834,1754613153635,-436.39,0.00022191,2]
[377917835,1754613153647,-400.0,0.00022191,2]
[377917836,1754613153657,-408.97,0.00022191,2]
[377917837,1754613153667,-803.71,0.00022191,2]
[377917838,1754613153677,-400.0,0.00022191,2]
[377917839,1754613153687,-1211.14,0.00022191,2]
[377917840,1754613153697,-832.28,0.00022191,2]
[377917841,1754613153707,-400.0,0.00022191,2]
[377917842,1754613153717,-470.44,0.00022191,2]
[377917843,1754613153728,-400.0,0.00022191,2]
[377917844,1754613153739,-634.61,0.00022191,2]
[377917845,1754613153749,-400.0,0.00022191,2]
[377917846,1754613153759,-1042.43,0.00022191,2]
[377917847,1754613153770,-411.96,0.00022191,2]
[377917848,1754613153780,-707.32,0.00022191,2]
[377917849,1754613153790,-455.66,0.00022191,2]
[377917850,1754613153800,-158.38475625,0.00022191,2]
[377917851,1754613153810,-854.23,0.00022191,2]
[377917852,1754613153822,-9366.87,0.00022191,2]
[377917853,1754613153834,-1513.02,0.00022191,2]
[377917854,1754613153844,-484.41,0.00022191,2]
[377917855,1754613153855,-801.68,0.00022191,2]
[377917856,1754613153870,-447.08,0.00022191,2]
[377917857,1754613153881,-1103.08,0.00022191,2]
[377917858,1754613153895,-400.0,0.00022191,2]
[377917859,1754613153908,-400.0,0.00022191,2]
[377917860,1754613153918,-1785.26,0.00022191,2]
[377917861,1754613153928,-400.0,0.00022191,2]
[377917862,1754613153941,-1209.1,0.00022191,2]
[377917863,1754613153953,-400.0,0.00022191,2]
[377917864,1754613153963,-512.05,0.00022191,2]
[377917865,1754613153975,-837.98,0.00022191,2]
[377917866,1754613153986,-400.0,0.00022191,2]
[377917867,1754613153998,-467.43,0.00022191,2]
[377917868,1754613154008,-588.83,0.00022191,2]
[377917869,1754613154018,-1005.96,0.00022191,2]
[377917870,1754613154030,-1338.39,0.00022191,2]
[377917871,1754613154040,-1973.33,0.00022191,2]
[377917872,1754613154051,-602.9,0.00022191,2]
[377917873,1754613154062,-969.26,0.00022191,2]
[377917874,1754613154071,-703.47,0.00022191,2]
[377917875,1754613154183,-1304.83,0.00022191,2]
[377917876,1754613154195,-2027.86,0.00022191,2]
[377917877,1754613154206,-688.65,0.00022191,2]
[377917878,1754613154217,-1312.78,0.00022191,2]
[377917879,1754613154228,-2100.2,0.00022191,2]
[377917880,1754613154238,-400.0,0.00022191,2]
[377917881,1754613154249,-1134.28,0.00022191,2]
[377917882,1754613154259,-1569.86,0.00022191,2]
[377917883,1754613154269,-1383.67,0.00022191,2]
[377917884,1754613154279,-356.69580407,0.00022191,2]
[377917885,1754613154289,-529.24,0.00022191,2]
[377917886,1754613154299,-812.54,0.00022191,2]
[377917887,1754613154310,-871.51,0.00022191,2]
[377917888,1754613154320,-755.43,0.00022191,2]
[377917889,1754613154329,-801.5,0.00022191,2]
[377917890,1754613154339,-603.98,0.00022191,2]
[377917891,1754613154348,-1094.56,0.00022191,2]
[377917892,1754613154358,-400.0,0.00022191,2]
[377917893,1754613154368,-744.46,0.00022191,2]
[377917894,1754613154378,-1864.15,0.00022191,2]
[377917895,1754613154388,-574.05,0.00022191,2]
[377917896,1754613154401,-1856.19,0.00022191,2]
[377917897,1754613154412,-400.0,0.00022191,2]
[377917898,1754613154421,-2819.61,0.00022191,2]
[377917899,1754613154431,-963.74,0.00022191,2]
[377917900,1754613154440,-400.0,0.00022191,2]
[377917901,1754613154450,-400.0,0.00022191,2]
[377917902,1754613154459,-641.78,0.00022191,2]
[377917903,1754613154470,-400.0,0.00022191,2]
[377917904,1754613154479,-421.69,0.00022191,2]
[377917905,1754613154489,-711.52,0.00022191,2]
[377917906,1754613154499,-1482.22,0.00022191,2]
[377917907,1754613154509,-400.0,0.00022191,2]
[377917908,1754613154519,-1692.64,0.00022191,2]
[377917909,1754613154529,-1130.98,0.00022191,2]
[377917910,1754613154539,-400.0,0.00022191,2]
[377917911,1754613154548,-400.0,0.00022191,2]
[377917912,1754613154558,-9960.13,0.00022191,2]